Cogmind - Beta 15 @@@ ROGUE MODE // 2025.08.09 @ 09:28:36 Player: beans Result: Destroyed by S-10 Pest with Light Assault Rifle Performance ------------- Evolutions (1) 500 Regions Visited (2) 400 Robots Destroyed (15) 75 Value Destroyed (255) 255 Prototype IDs (0) 0 Alien Tech Used (0) 0 Bonus (0) 0 TOTAL SCORE: 1230 Bonus ------- None Cogmind --------- Core Integrity 0/400 Matter 284/700 Energy 100/100 System Corruption 1% Temperature Cool (0) Movement Core (150) Ox2 Location -9/Materials Parts ------- > --- POWER (2) -------- (None) > --- PROPULSION (2) --- (None) > --- UTILITY (3) ------ High-capacity Matter Pod High-capacity Matter Pod > --- WEAPON (2) ------- (None) > --- INVENTORY (5) ---- Light Ion Engine Light Treads Small Storage Unit Peak State ------------ > --- POWER ------------ Reinforced Ion Engine Reinforced Ion Engine > --- PROPULSION ------- Improved Treads > --- UTILITY ---------- High-capacity Matter Pod High-capacity Matter Pod High-capacity Matter Pod > --- WEAPON ----------- (None) > --- INVENTORY -------- Light Ion Engine Light Treads Small Storage Unit Light Assault Rifle [Rating: 9] Favorites ----------- Power Light Ion Engine Engine Light Ion Engine Propulsion Light Treads Treads Light Treads Utility High-capacity Matter Pod Storage High-capacity Matter Pod Weapon Grenade Launcher Ballistic Gun Light Assault Rifle Launcher Grenade Launcher Build | -11 -10 -9 ------- Run | Yrd Mat Mat Slots Evolved 2 | . . 2 Power 1 | . . 1 Propulsion . | . . . Utility 1 | . . 1 Weapon . | . . . Parts Attached 12 | 5 3 4 Power 3 | 1 . 2 Engine 3 | 1 . 2 Core . | . . . Reactor . | . . . Propulsion 3 | 2 . 1 Treads 3 | 2 . 1 Leg . | . . . Wheel . | . . . Hover . | . . . Flight . | . . . Utility 3 | . 2 1 Device . | . . . Storage 3 | . 2 1 Processor . | . . . Hackware . | . . . Protection . | . . . Artifact . | . . . Weapon 3 | 2 1 . Energy Gun . | . . . Energy Cannon . | . . . Ballistic Gun 2 | 2 . . Ballistic Cannon . | . . . Launcher 1 | . 1 . Special Weapon . | . . . Impact Weapon . | . . . Slashing Weapon . | . . . Piercing Weapon . | . . . Special Melee Weapon . | . . . Unidentified Prototypes . | . . . Parts Lost 8 | . 1 7 Power 2 | . . 2 Propulsion 2 | . . 2 Utility 1 | . . 1 Weapon 3 | . 1 2 Highest Loss Streak 5 | . 1 5 To Critical Strikes . | . . . Average Backups 2 | . 2 3 Power . | . . . Propulsion . | . . . Utility 1 | . 1 1 Weapon . | . . . Tool/Special . | . . . Unused Backups 1 | . . 1 Power . | . . . Propulsion . | . . . Utility 1 | . . 1 Weapon . | . . . Tool/Special . | . . . Average Slot Usage (%) 76 | . 85 71 Engine 13 | . 14 12 Treads 21 | . 28 17 Storage 27 | . 18 31 Ballistic Gun 6 | . 16 1 Launcher 7 | . 6 8 Peak Build Rating 9 | 5 7 9 Average Rating 6 | 3 6 7 On Entrance 3 | . 5 6 Naked Turns . | . . . Heaviest Build 32 | 6 16 32 Greatest Support 43 | 40 40 43 Greatest Overweight (x) 9 | . . 9 Average Overweight (x) . | . . . Largest Inventory Capacity 5 | 5 5 5 Average Capacity 5 | 5 5 5 Most Carried 5 | 2 5 5 Average Carried 2 | . 2 3 Final Capacity 5 | 5 5 5 Final Carried 3 | . 3 3 Class Distribution -------------------- 100% | Mutant Dominant Class ---------------- Mutant | -10/Materials Mutant | -9/Materials Resources | -11 -10 -9 ----------- Run | Yrd Mat Mat Matter Collected 540 | 250 268 22 Remotely . | . . . Salvage Created 172 | . 41 131 Parts 32 | . . 32 Haulers Intercepted 1 | . . 1 Recyclers Shooed 1 | . . 1 Parts Field Recycled . | . . . Retrieved Matter . | . . . Parts Self-Destructed . | . . . Prevented . | . . . Kills | -11 -10 -9 ------- Run | Yrd Mat Mat Combat Hostiles Destroyed 7 | . 2 5 AOE 7 | . 2 5 Classes Destroyed 7 | . 1 6 Worker 2 | . . 2 Builder 4 | . . 4 Hauler 1 | . . 1 Mechanic 1 | . . 1 Swarmer 3 | . . 3 Grunt 2 | . 2 . Sentry 2 | . . 2 Best Kill Streak 8 | . 2 8 Combat Bots Only 3 | . 2 3 Max Kills in Single Turn 4 | . 2 4 Gunslinging . | . . . Exploded 2 | . 2 2 Melee . | . . . Uniques/NPCs Destroyed . | . . . Combat | -11 -10 -9 -------- Run | Yrd Mat Mat Hostile Shots Fired 182 | . 4 178 Missed 58 | . . 58 Hits 124 | . 4 120 Projectile 124 | . 4 120 Damage Taken 1452 | . 289 1163 Core 424 | . 23 401 Absorbed by Shields . | . . . Core Remaining (%) 95 | 100 90 . Volleys Fired 25 | . 2 23 Largest 2 | . 2 1 Hottest 50 | . 50 30 Shots Fired 27 | . 4 23 Gun 2 | . 2 . Cannon . | . . . Launcher 25 | . 2 23 Special . | . . . Kinetic 2 | . 2 . Thermal . | . . . Explosive 25 | . 2 23 Electromagnetic . | . . . Robot Hit Streak 6 | . 1 6 Robot Miss Streak 2 | . 1 2 Penetration Max . | . . . Secondary Targets . | . . . Shots Hit Robots 7 | . 1 6 Core Hits 27 | . 2 25 Critical Kills . | . . . Critical Parts Destroyed . | . . . Critical Strikes . | . . . Melee Attacks . | . . . Impact . | . . . Slashing . | . . . Piercing . | . . . Sneak Attacks . | . . . Combat Hostiles . | . . . Follow-up Attacks . | . . . Damage Inflicted 985 | . 194 791 Guns . | . . . Cannons . | . . . Explosions 985 | . 194 791 Melee . | . . . Ramming . | . . . Kinetic . | . . . Thermal 103 | . 103 . Explosive 882 | . 91 791 Electromagnetic . | . . . Impact . | . . . Slashing . | . . . Piercing . | . . . Highest Corruption 1 | . . 1 Average Corruption 1 | . . 1 Corruption Purged . | . . . Corruption Blocked . | . . . Effects 2 | . . 2 Message Errors 1 | . . 1 Matter Fused 1 | . . 1 Overload Shots . | . . . Overflow Damage 11 | . 11 . Projectiles . | . . . Explosions 11 | . 11 . Melee . | . . . Knockbacks . | . . . Impact . | . . . Kinetic . | . . . Secondary . | . . . Self-Inflicted Damage 243 | . 243 . Shots 3 | . 3 . Rammed . | . . . Targets Rammed . | . . . Kicked . | . . . Crushed . | . . . Highest Temperature 8 | . 8 8 Average Temperature 3 | . 5 3 Received Heat Transfer 321 | . 24 297 Siege Activations . | . . . Martial Activations . | . . . Shielding Activations . | . . . Robots Disrupted . | . . . Combat Hostiles . | . . . Robots Corrupted . | . . . Combat Hostiles . | . . . Parts Fried . | . . . Impact Corruptions . | . . . Robots Melted . | . . . Combat Hostiles . | . . . Parts Melted . | . . . Heat Transferred 100 | . 100 . Parts Sabotaged . | . . . Parts Stolen . | . . . Parts Stripped . | . . . Power Chain Reactions . | . . . Alert | -11 -10 -9 ------- Run | Yrd Mat Mat Maximum Alert Level . | . . . Low Security (%) 100 | 100 100 100 Level 1 . | . . . Level 2 . | . . . Level 3 . | . . . Level 4 . | . . . Level 5 . | . . . High Security . | . . . Max Security . | . . . Peak Influence 169 | . 100 169 Initial 29 | . . 29 Average 64 | . 34 92 Influence Increases 360 | . 110 250 Destroy 0b10 Robot/C 140 | . 40 100 Destroy 0b10 Robot/NC 40 | . . 40 Destroy Leader 42 | . 10 32 Disable Machine 45 | . 45 . Destroy Structure 93 | . 15 78 Influence Decreases 291 | . 40 251 Entered New Map 41 | . . 41 Time Decay 170 | . 30 140 Lost Part 80 | . 10 70 Squads Dispatched 1 | . 1 . Investigation 1 | . 1 . Extermination . | . . . Reinforcement . | . . . Assault . | . . . Garrison . | . . . Intercept . | . . . Searches Triggered . | . . . Construction Impeded . | . . . Haulers Reinforced . | . . . Active Scanning Responses . | . . . Cargo Convoy Interrupts . | . . . Stealth | -11 -10 -9 --------- Run | Yrd Mat Mat Distress Signals . | . . . Communications Jammed . | . . . Distress Signals . | . . . Times Spotted 23 | . 5 18 Peak Tracking Total 9 | . 3 9 Tactical Retreats . | . . . Traps | -11 -10 -9 ------- Run | Yrd Mat Mat Traps Triggered 2 | . 1 1 Indirectly . | . . . Trap Hack Attempts . | . . . Triggered . | . . . Disarmed . | . . . Reprogrammed . | . . . Reused . | . . . Traps Extracted . | . . . Installed . | . . . Triggered . | . . . Machines | -11 -10 -9 ---------- Run | Yrd Mat Mat Machines Disabled 3 | . 3 . Max in Single Turn 3 | . 3 . Machines Repaired . | . . . Machines Dismantled . | . . . Machines Sabotaged . | . . . Overloaded Fab Kills . | . . . Hacking | -11 -10 -9 --------- Run | Yrd Mat Mat Machines Accessed . | . . . Terminals . | . . . Fabricators . | . . . Repair Stations . | . . . Recycling Units . | . . . Scanalyzers . | . . . Garrison Access . | . . . Total Hacks . | . . . Successful . | . . . Failed . | . . . Catastrophic . | . . . Database Lockouts . | . . . Manual . | . . . Terminals . | . . . Fabricators . | . . . Repair Stations . | . . . Recycling Units . | . . . Scanalyzers . | . . . Garrison Access . | . . . Terminal Hacks . | . . . Fabricator Hacks . | . . . Repair Station Hacks . | . . . Recycling Unit Hacks . | . . . Scanalyzer . | . . . Garrison Access Hacks . | . . . Unauthorized Hacks . | . . . Terminals . | . . . Fabricators . | . . . Repair Stations . | . . . Recycling Units . | . . . Scanalyzers . | . . . Garrison Access . | . . . Data Cores Recovered . | . . . Used . | . . . Hacking Detections . | . . . Full Trace Events . | . . . Feedback Events . | . . . Feedback Blocked . | . . . Robot Schematics Acquired . | . . . Robots Built . | . . . Authchips . | . . . Time . | . . . Total Robot Build Rating . | . . . Part Schematics Acquired . | . . . Parts Built . | . . . Authchips . | . . . Time . | . . . Total Part Build Rating . | . . . Parts Repaired . | . . . Time . | . . . Parts Recycled . | . . . Recycled Matter . | . . . Retrieved Matter . | . . . Retrieved Components . | . . . Parts Scanalyzed . | . . . Part Schematics Acquired . | . . . Parts Damaged . | . . . Bothacking | -11 -10 -9 ------------ Run | Yrd Mat Mat Used RIF Installer . | . . . Robots Hacked . | . . . Non-combat . | . . . Combat . | . . . Robot Hacks Applied . | . . . Relay Couplers Released . | . . . Fabnet Peak Effective % . | . . . Robots Rewired . | . . . Allies Hacked . | . . . Hacks Repelled . | . . . Allies | -11 -10 -9 -------- Run | Yrd Mat Mat Total Allies . | . . . Largest Group . | . . . Highest-Rated Group . | . . . Highest-Rated Ally . | . . . Total Orders . | . . . Ally Attacks . | . . . Total Damage . | . . . Kills . | . . . Allies Corrupted . | . . . Allies Melted . | . . . Intel | -11 -10 -9 ------- Run | Yrd Mat Mat Active Infowar (turns) . | . . . Robot Analysis Total . | . . . Derelict Logs Recovered . | . . . Drone Launches . | . . . Drone Recoveries . | . . . Exploration | -11 -10 -9 ------------- Run | Yrd Mat Mat Turns Passed 504 | 67 140 297 Spaces Moved 258 | 42 79 137 Core 17 | 8 . 9 Treads 241 | 34 79 128 Legs . | . . . Wheels . | . . . Hover . | . . . Flight . | . . . Fastest Speed 50 | 50 160 150 Average Speed 165 | 139 160 176 Slowest Speed 500 | 160 160 500 Overloaded Moves . | . . . Propulsion Burnouts . | . . . Robots Hopped . | . . . Potential Cave-ins . | . . . Cave-ins Triggered . | . . . Exploration Rate (%) 15 | 3 22 22 Regions Visited 2 Branch Regions . Pre-discovered Areas . | . . . Known Exits Taken . | . . . Unknown Exits Taken 2 | 1 1 . Scrap Searched . | . . . Spaces Dug 9 | . . 9 Terrain Destroyed 102 | . 15 87 Melee . | . . . Projectile . | . . . AOE 102 | . 15 87 Terrain Rammed . | . . . Walls Destroyed . | . . . Machines Disabled . | . . . Actions | -11 -10 -9 --------- Run | Yrd Mat Mat Total 307 | 51 88 168 Wait . | . . . Move 256 | 41 78 137 Hop . | . . . Pick Up 13 | 5 5 3 Fast Attach . | . . . Attach 10 | 5 2 3 Detach . | . . . Swap 3 | . 1 2 Drop . | . . . Fire 25 | . 2 23 Melee . | . . . Ram . | . . . Kick . | . . . Crush . | . . . Escape Stasis . | . . . Rewire . | . . . Trap . | . . . Miscellaneous . | . . . Route ------- -11/Scrapyard -10/Materials -9/Materials History --------- Turn | Location | Event 2 | -11/Scrapyard | Discovered new exit (range 16) 68 | -11/Scrapyard | Entered Materials 136 | -10/Materials | Discovered new exit (range 15) 208 | -10/Materials | Entered another Materials area 208 | -9/Materials | Evolved 2 slots: Power x1, Utility x1 317 | -9/Materials | Build established: Mutant 483 | -9/Materials | Core integrity fell below 50% 501 | -9/Materials | Core integrity fell below 20% 505 | -9/Materials | Destroyed by S-10 Pest with Light Assault Rifle Last Messages --------------- Acquired Rnf. Ion Engine. U-05 Engineer lays Concrete. R-06 Scavenger collects Lgt. Armor Plating. U-05 Engineer lays Concrete. S-10 Pest destroyed. U-05 Engineer lays Concrete. U-05 Engineer builds a Wall. U-05 Engineer lays Concrete. U-05 Engineer builds a Wall. U-05 Engineer lays Concrete. The unstable cave ceiling collapses. U-05 Engineer builds a Wall. Hcp. Matter Pod destroyed. System corrupted: Matter fused (-10). S-10 Pest destroyed. Imp. Treads destroyed. S-10 Pest destroyed. Rnf. Ion Engine destroyed. Lgt. Assault Rifle destroyed. PK>VP&6C5HQ#Z6PJ>Q0SW LLPLFFUV Map ----- +----------------------------------------------------+ | ?????????????????????????????????????????????????? | | ?????????????????????????????????????????????????? | | ?????????????????????????????????????????????????? | | ?????????????????????????????????????????????????? | | ?????????????????????????????????????????????????? | | ?????????????????????????????????????????????????? | | ?????????????????????????????????????????????????? | | ?????????????????????????????????????????????????? | | ?????????????????????????????????????????????????? | | ?????????????????????????????????????????????????? | | ????????????????????????????????? ?????????????? | | ????????????????????????????????# #????????????? | | ????????????????????????????????# #????????????? | | ????????????????????????????????# #????????????? | | ????????????????????????????????# #????????????? | | ????????????????????????????????# #????????????? | | ?????????????????????????######## #????????????? | | ?????????????????????????# [# #????????????? | | ?????????????????????????# """ # #????????????? | | ?????????????????????????# """ =# #????????????? | | ?????????????????????????# """ # #????????????? | | ?????????????????????????# # #????????????? | | ??????????????????????????? # #????????????? | | ?????????????#########+######+### ########?????? | | ???????????# sgg #?????? | | ???????????# @ g % #?????? | | ??????????????"T" ss g=%[ #?????? | | ???????????? #############a##### #?????? | | ???????????# ??????????# ##????? | | ???????????# ?????????????# # #????? | | ???????????? ????????????????# """ """ # ##????? | | ?????????????????????????????# """ """ # #####?? | | ?????????????????????????????# """ """ # | | ????????????????"" ??????????# # ####### | | ??????????????? ?????????# [ # | | ???????????????? ????????# * =%*# # [ | | ????????????????"" ??????#### ! # | | ????????????????"" ###+### %== + """ | | ?????????????? """ | ** # """ | | ????????????? ! |! !# """ | | ????????????? ^= | /! +#### | | ???????????????????# # /! #?? | | ???????????????????# ###### #? | | ???????????????????# !! #????#### # | | ???????????????????# !! #???????# * % # | | ???????????????????# #???????## % ## | | ???????????????????# #??? ???? == ##? | | ???????????????????# """ #?? ??? ##?? | | ???????????????????# """ #? ???? + # #??? | | ???????????????????# """ # ????? ## # ??? | +----------------------------------------------------+ Best States ------------- Heat Dissipation 28 Energy Generation 19 Energy Capacity 430 Matter Stores 517 Matter Capacity 900 Sight Range 16 Terrain Scan Density 10 Evasion (%) 40 Recoil Reduction 2 Item Schematics ----------------- None Robot Schematics ------------------ None Fabricated ------------ Nothing Repaired ---------- Nothing Alien Tech Used ----------------- None Achievements -------------- None Challenges ------------ None Game ------ Seed FactoryJammingDrivehammer Manual? 0 Play Time 00:05:57 Cumulative 85.0 hours Start 2025.08.09 @ 09:24:55 End 2025.08.09 @ 09:28:36 Sessions 1 Manual Loads 0 Difficulty Rogue Special Mode None Game No. 336 Rogue 336 Adventurer 0 Explorer 0 Win Type - Total 0 Types 0/0/0/0/0/0/0/0/0/0 Lore% 36 Gallery% 36 Achievement% 30 Wizard Run 0 Options --------- Layout 2 ASCII 0 Keyboard 0 Movement Mouse Keybinds 0 Fullscreen 2 Font 24/Smallcaps Map View 50x44 Zoom Use 0% Tactical HUD 0 Map Filters NONE Filters NONE Steam 1 RUN: 8fef0703-e7a0-4bcf-9275-89baaea337c7